lending/lending_fUSD_20250131
["ID","MTS","AMOUNT","RATE_DAILY","PERIOD"]
[351100339,1738336260664,-533.89,0.00016712,2]
[351100340,1738336260674,-500.0,0.00016712,2]
[351100341,1738336260683,-500.0,0.00016712,2]
[351100342,1738336260692,-500.0,0.00016712,2]
[351100343,1738336260701,-500.0,0.00016712,2]
[351100344,1738336260710,-269.06958826,0.00016712,2]
[351100345,1738336260719,-500.0,0.00016712,2]
[351100346,1738336260729,-500.0,0.00016712,2]
[351100347,1738336260738,-170.76,0.00016712,2]
[351100348,1738336260748,-852.1,0.00016712,2]
[351100349,1738336260758,-500.0,0.00016712,2]
[351100350,1738336260767,-500.0,0.00016712,2]
[351100351,1738336260777,-505.5004123,0.00016712,2]
[351100352,1738336260787,-525.58,0.00016712,2]
[351100353,1738336260798,-757.77,0.00016712,2]
[351100354,1738336260808,-500.0,0.00016712,2]
[351100355,1738336260818,-500.0,0.00016712,2]
[351100356,1738336260827,-1434.89,0.00016712,2]
[351100357,1738336260837,-603.49,0.00016712,2]
[351100358,1738336260847,-630.1,0.00016712,2]
[351100359,1738336260860,-500.0,0.00016712,2]
[351100360,1738336260870,-500.0,0.00016712,2]
[351100361,1738336260880,-500.0,0.00016712,2]
[351100362,1738336260890,-500.0,0.00016712,2]
[351100363,1738336260900,-504.7756402,0.00016712,2]
[351100364,1738336260910,-500.0,0.00016712,2]
[351100365,1738336260920,-500.0,0.00016712,2]
[351100366,1738336260930,-500.0,0.00016712,2]
[351100367,1738336260939,-877.71,0.00016712,2]
[351100368,1738336260948,-858.97,0.00016712,2]
[351100369,1738336260958,-1200.35,0.00016712,2]
[351100370,1738336260968,-950.79,0.00016712,2]
[351100371,1738336260978,-500.0,0.00016712,2]
[351100372,1738336260987,-500.0,0.00016712,2]
[351100373,1738336260997,-613.65,0.00016712,2]
[351100374,1738336261006,-600.96,0.00016712,2]
[351100375,1738336261016,-500.0,0.00016712,2]
[351100376,1738336261025,-500.0,0.00016712,2]
[351100377,1738336261035,-702.63,0.00016712,2]
[351100378,1738336261045,-620.12,0.00016712,2]
[351100379,1738336261054,-500.0,0.00016712,2]
[351100380,1738336261064,-500.0,0.00016712,2]
[351100381,1738336261073,-367.81054071,0.00016712,2]
[351100382,1738336261083,-541.51,0.00016712,2]
[351100383,1738336261092,-606.69,0.00016712,2]
[351100384,1738336261104,-500.0,0.00016712,2]
[351100385,1738336261114,-269.78868998,0.00016712,2]
[351100386,1738336261122,-500.0,0.00016712,2]
[351100387,1738336261132,-616.16,0.00016712,2]
[351100388,1738336261141,-511.88984396,0.00016712,2]
[351100389,1738336261151,-500.0,0.00016712,2]
[351100390,1738336261160,-500.0,0.00016712,2]
[351100391,1738336261169,-500.0,0.00016712,2]
[351100392,1738336261178,-245.98649983,0.00016712,2]
[351100393,1738336261187,-500.0,0.00016712,2]
[351100394,1738336261196,-500.0,0.00016712,2]
[351100395,1738336261205,-500.0,0.00016712,2]
[351100396,1738336261215,-506.35249546,0.00016712,2]
[351100397,1738336261224,-500.0,0.00016712,2]
[351100398,1738336261234,-500.0,0.00016712,2]
[351100399,1738336261243,-500.0,0.00016712,2]
[351100400,1738336261252,-500.0,0.00016712,2]
[351100401,1738336261262,-500.0,0.00016712,2]
[351100402,1738336261271,-500.0,0.00016712,2]
[351100403,1738336261280,-500.0,0.00016712,2]
[351100404,1738336261290,-704.31,0.00016712,2]
[351100405,1738336261299,-500.0,0.00016712,2]
[351100406,1738336261308,-508.9755666,0.00016712,2]
[351100407,1738336261317,-504.60417649,0.00016712,2]
[351100408,1738336261327,-500.0,0.00016712,2]
[351100409,1738336261337,-1130.83,0.00016712,2]
[351100410,1738336261346,-566.23,0.00016712,2]
[351100411,1738336261359,-500.0,0.00016712,2]
[351100412,1738336261369,-664.76,0.00016712,2]
[351100413,1738336261378,-500.0,0.00016712,2]
[351100414,1738336261387,-620.24,0.00016712,2]
[351100415,1738336261396,-500.0,0.00016712,2]
[351100416,1738336261406,-500.0,0.00016712,2]
[351100417,1738336261415,-1327.84,0.00016712,2]
[351100418,1738336261426,-500.0,0.00016712,2]
[351100419,1738336261435,-500.0,0.00016712,2]
[351100420,1738336261444,-632.53,0.00016712,2]
[351100421,1738336261454,-1398.15,0.00016712,2]
[351100422,1738336261463,-500.0,0.00016712,2]
[351100423,1738336261472,-1746.61,0.00016712,2]
[351100424,1738336261482,-500.0,0.00016712,2]
[351100425,1738336261491,-500.0,0.00016712,2]
[351100426,1738336261502,-500.0,0.00016712,2]
[351100427,1738336261511,-500.0,0.00016712,2]
[351100428,1738336261520,-500.0,0.00016712,2]
[351100429,1738336261529,-500.0,0.00016712,2]
[351100430,1738336261541,-981.83,0.00016712,2]
[351100431,1738336261553,-502.65337989,0.00016712,2]
[351100432,1738336261562,-1441.64,0.00016712,2]
[351100433,1738336261573,-500.0,0.00016712,2]
[351100434,1738336261583,-637.09,0.00016712,2]
[351100435,1738336261595,-500.0,0.00016712,2]
[351100436,1738336261606,-1275.76,0.00016712,2]
[351100437,1738336261616,-500.0,0.00016712,2]
[351100438,1738336261625,-2098.45,0.00016712,2]
[351100439,1738336261636,-626.81,0.00016712,2]
[351100440,1738336261647,-554.13,0.00016712,2]
[351100441,1738336261656,-921.1,0.00016712,2]
[351100442,1738336261666,-500.0,0.00016712,2]
[351100443,1738336261676,-500.0,0.00016712,2]
[351100444,1738336261687,-225.433209,0.00016712,2]
[351100445,1738336261696,-440.93426664,0.00016712,2]
[351100446,1738336261705,-500.0,0.00016712,2]
[351100447,1738336261715,-407.23369664,0.00016712,2]
[351100448,1738336261724,-1771.39,0.00016712,2]
[351100449,1738336261734,-4952.21,0.00016712,2]
[351100450,1738336261743,-578.79,0.00016712,2]
[351100451,1738336261753,-2143.02,0.00016712,2]
[351100452,1738336261763,-500.0,0.00016712,2]
[351100453,1738336261773,-274.50669702,0.00016712,2]
[351100454,1738336261783,-567.12,0.00016712,2]
[351100455,1738336261793,-500.0,0.00016712,2]
[351100456,1738336261802,-611.57,0.00016712,2]
[351100457,1738336261812,-500.0,0.00016712,2]
[351100458,1738336261822,-500.0,0.00016712,2]
[351100459,1738336261831,-6888.33,0.00016712,2]
[351100460,1738336261841,-698.84,0.00016712,2]
[351100461,1738336261852,-500.0,0.00016712,2]
[351100462,1738336261862,-500.0,0.00016712,2]
[351100463,1738336261872,-1103.61,0.00016712,2]
[351100464,1738336261881,-2195.87,0.00016712,2]
[351100465,1738336261891,-5130.74,0.00016712,2]
[351100466,1738336261900,-429.17592574,0.00016712,2]
[351100467,1738336261910,-884.78,0.00016712,2]
[351100468,1738336261920,-1252.77,0.00016712,2]
[351100469,1738336261930,-500.0,0.00016712,2]
[351100470,1738336261939,-500.0,0.00016712,2]
[351100471,1738336261949,-3970.03,0.00016712,2]
[351100472,1738336261958,-1435.28,0.00016712,2]
[351100473,1738336261968,-500.0,0.00016712,2]
[351100474,1738336261977,-1140.44,0.00016712,2]
[351100475,1738336261987,-2633.08,0.00016712,2]
[351100476,1738336261997,-4076.51,0.00016712,2]
[351100477,1738336262007,-500.0,0.00016712,2]
[351100478,1738336262016,-500.0,0.00016712,2]
[351100479,1738336262026,-500.0,0.00016712,2]
[351100480,1738336262035,-1963.37,0.00016712,2]
[351100481,1738336262045,-2628.59,0.00016712,2]
[351100482,1738336262055,-2178.32,0.00016712,2]
[351100483,1738336262065,-1467.66,0.00016712,2]
[351100484,1738336262074,-500.0,0.00016712,2]
[351100485,1738336262083,-506.55735995,0.00016712,2]
[351100486,1738336262092,-559.86,0.00016712,2]
[351100487,1738336262102,-500.0,0.00016712,2]
[351100488,1738336262112,-643.53,0.00016712,2]
[351100489,1738336262122,-500.0,0.00016712,2]
[351100490,1738336262131,-710.32,0.00016712,2]
[351100491,1738336262140,-500.0,0.00016712,2]
[351100492,1738336262149,-3326.89,0.00016712,2]
[351100493,1738336262159,-151.0,0.00016712,2]
[351100494,1738336262168,-500.0,0.00016712,2]
[351100495,1738336262177,-4506.81,0.00016712,2]
[351100496,1738336262188,-500.0,0.00016712,2]
[351100497,1738336262197,-4413.89,0.00016712,2]
[351100498,1738336262206,-500.0,0.00016712,2]
[351100499,1738336262215,-500.0,0.00016712,2]
[351100500,1738336262225,-151.0,0.00016712,2]
[351100501,1738336262236,-500.0,0.00016712,2]
[351100502,1738336262246,-612.33,0.00016712,2]
[351100503,1738336262256,-993.49,0.00016712,2]
[351100504,1738336262265,-500.0,0.00016712,2]
[351100505,1738336262275,-500.0,0.00016712,2]
[351100506,1738336262283,-157.65239071,0.00016712,2]
[351100507,1738336262293,-1995.46,0.00016712,2]
[351100508,1738336262302,-500.0,0.00016712,2]
[351100509,1738336262311,-500.47402969,0.00016712,2]
[351100510,1738336262321,-538.54,0.00016712,2]
[351100511,1738336262330,-10054.63,0.00016712,2]
[351100512,1738336262339,-2411.51,0.00016712,2]
[351100513,1738336262349,-500.0,0.00016712,2]
[351100514,1738336262360,-1987.99,0.00016712,2]
[351100515,1738336262369,-500.0,0.00016712,2]
[351100516,1738336262379,-807.99,0.00016712,2]
[351100517,1738336262388,-500.0,0.00016712,2]
[351100518,1738336262398,-500.0,0.00016712,2]
[351100519,1738336262408,-5113.18,0.00016712,2]
[351100520,1738336262417,-151.0,0.00016712,2]
[351100521,1738336262426,-500.0,0.00016712,2]
[351100522,1738336262435,-2620.84,0.00016712,2]
[351100523,1738336262444,-500.0,0.00016712,2]
[351100524,1738336262454,-4022.5,0.00016712,2]
[351100525,1738336262464,-512.42777013,0.00016712,2]
[351100526,1738336262474,-508.11548475,0.00016712,2]
[351100527,1738336262483,-2354.55,0.00016712,2]
[351100528,1738336262493,-530.75141877,0.00016712,2]
[351100529,1738336262503,-781.24,0.00016712,2]
[351100530,1738336262513,-500.0,0.00016712,2]
[351100531,1738336262523,-1345.91,0.00016712,2]
[351100532,1738336262533,-500.0,0.00016712,2]
[351100533,1738336262545,-500.0,0.00016712,2]
[351100534,1738336262554,-500.0,0.00016712,2]
[351100535,1738336262563,-500.0,0.00016712,2]
[351100536,1738336262572,-500.0,0.00016712,2]
[351100537,1738336262581,-500.0,0.00016712,2]
[351100538,1738336262590,-924.33,0.00016712,2]
[351100539,1738336262599,-500.0,0.00016712,2]
[351100540,1738336262609,-500.0,0.00016712,2]
[351100541,1738336262618,-500.0,0.00016712,2]
[351100542,1738336262627,-1019.42,0.00016712,2]
[351100543,1738336262636,-722.64,0.00016712,2]
[351100544,1738336262645,-772.67,0.00016712,2]
[351100545,1738336262654,-501.59,0.00016712,2]
[351100546,1738336262663,-500.0,0.00016712,2]
[351100547,1738336262672,-500.0,0.00016712,2]
[351100548,1738336262681,-695.46,0.00016712,2]
[351100549,1738336262690,-151.0,0.00016712,2]
[351100550,1738336262700,-500.0,0.00016712,2]
[351100551,1738336262710,-500.0,0.00016712,2]
[351100552,1738336262720,-1641.73,0.00016712,2]
[351100553,1738336262729,-1047.26,0.00016712,2]
[351100554,1738336262738,-2271.55,0.00016712,2]
[351100555,1738336262747,-3878.3,0.00016712,2]
[351100556,1738336262756,-500.0,0.00016712,2]
[351100557,1738336262766,-1055.71,0.00016712,2]
[351100558,1738336262775,-500.0,0.00016712,2]
[351100559,1738336262785,-758.79,0.00016712,2]
[351100560,1738336262794,-1452.48,0.00016712,2]
[351100561,1738336262803,-500.0,0.00016712,2]
[351100562,1738336262813,-500.0,0.00016712,2]
[351100563,1738336262822,-500.0,0.00016712,2]
[351100564,1738336262832,-519.72841723,0.00016712,2]
[351100565,1738336262842,-500.0,0.00016712,2]
[351100566,1738336262852,-500.0,0.00016712,2]
[351100567,1738336262862,-2328.52,0.00016712,2]
[351100568,1738336262872,-3589.66,0.00016712,2]
[351100569,1738336262882,-500.0,0.00016712,2]
[351100570,1738336262891,-500.0,0.00016712,2]
[351100571,1738336262900,-721.79,0.00016712,2]
[351100572,1738336262910,-500.0,0.00016712,2]
[351100573,1738336262920,-1125.15,0.00016712,2]
[351100574,1738336263111,-500.0,0.00016712,2]
[351100575,1738336263133,-1112.99,0.00016712,2]
[351100576,1738336263143,-500.0,0.00016712,2]
[351100577,1738336263154,-1172.82,0.00016712,2]
[351100578,1738336263164,-973.89,0.00016712,2]
[351100579,1738336263174,-305.378221,0.00016712,2]
[351100580,1738336263184,-834.05,0.00016712,2]
[351100581,1738336263194,-734.24,0.00016712,2]
[351100582,1738336263204,-500.0,0.00016712,2]
[351100583,1738336263213,-500.0,0.00016712,2]
[351100584,1738336263223,-500.0,0.00016712,2]
[351100585,1738336263233,-305.378221,0.00016712,2]
[351100586,1738336263242,-500.0,0.00016712,2]
[351100587,1738336263253,-500.0,0.00016712,2]
[351100588,1738336263263,-1958.03,0.00016712,2]
[351100589,1738336263273,-1216.38,0.00016712,2]
[351100590,1738336263284,-1127.28,0.00016712,2]
[351100591,1738336263294,-500.0,0.00016712,2]
[351100592,1738336263305,-762.12,0.00016712,2]
[351100593,1738336263316,-3529.86,0.00016712,2]
[351100594,1738336263325,-10559.92,0.00016712,2]
[351100595,1738336263335,-500.0,0.00016712,2]
[351100596,1738336263345,-2055.3,0.00016712,2]
[351100597,1738336263358,-500.0,0.00016712,2]
[351100598,1738336263368,-2622.42,0.00016712,2]
[351100599,1738336263378,-517.92,0.00016712,2]
[351100600,1738336263388,-1257.41,0.00016712,2]
[351100601,1738336263398,-500.0,0.00016712,2]
[351100602,1738336263408,-1041.38,0.00016712,2]
[351100603,1738336263417,-500.0,0.00016712,2]
[351100604,1738336263427,-951.07,0.00016712,2]
[351100605,1738336263436,-881.62,0.00016712,2]
[351100606,1738336263445,-505.53,0.00016712,2]
[351100607,1738336263455,-500.0,0.00016712,2]
[351100608,1738336263465,-500.0,0.00016712,2]
[351100609,1738336263474,-500.0,0.00016712,2]
[351100610,1738336263484,-500.0,0.00016712,2]
[351100611,1738336263493,-1601.79,0.00016712,2]
[351100612,1738336263503,-500.0,0.00016712,2]
[351100613,1738336263513,-3023.48,0.00016712,2]
[351100614,1738336263522,-2186.38,0.00016712,2]
[351100615,1738336263531,-1439.48,0.00016712,2]
[351100616,1738336263544,-500.0,0.00016712,2]
[351100617,1738336263553,-500.0,0.00016712,2]
[351100618,1738336263562,-557.54,0.00016712,2]
[351100619,1738336263572,-573.33,0.00016712,2]
[351100620,1738336263582,-756.42,0.00016712,2]
[351100621,1738336263592,-639.43,0.00016712,2]
[351100622,1738336263604,-500.0,0.00016712,2]
[351100623,1738336263615,-1661.1,0.00016712,2]
[351100624,1738336263625,-500.0,0.00016712,2]
[351100625,1738336263636,-679.07,0.00016712,2]
[351100626,1738336263646,-500.0,0.00016712,2]
[351100627,1738336263655,-1851.15,0.00016712,2]
[351100628,1738336263665,-798.64,0.00016712,2]
[351100629,1738336263675,-2143.53,0.00016712,2]
[351100630,1738336263685,-500.0,0.00016712,2]
[351100631,1738336263694,-684.52,0.00016712,2]
[351100632,1738336263704,-500.0,0.00016712,2]
[351100633,1738336263715,-906.88,0.00016712,2]
[351100634,1738336263725,-500.0,0.00016712,2]
[351100635,1738336263734,-1723.07,0.00016712,2]
[351100636,1738336263744,-2004.75,0.00016712,2]
[351100637,1738336263754,-1099.67,0.00016712,2]
[351100638,1738336263763,-1555.39,0.00016712,2]
[351100639,1738336263772,-1372.99,0.00016712,2]
[351100640,1738336263782,-500.0,0.00016712,2]
[351100641,1738336263791,-640.22,0.00016712,2]
[351100642,1738336263801,-500.0,0.00016712,2]
[351100643,1738336263811,-712.98,0.00016712,2]
[351100644,1738336263821,-753.43,0.00016712,2]
[351100645,1738336263831,-2203.92,0.00016712,2]
[351100646,1738336263840,-500.0,0.00016712,2]
[351100647,1738336263850,-762.33,0.00016712,2]
[351100648,1738336263860,-500.0,0.00016712,2]
[351100649,1738336263870,-500.0,0.00016712,2]
[351100650,1738336263880,-674.84,0.00016712,2]
[351100651,1738336263890,-189.595804,0.00016712,2]
[351100652,1738336263900,-330.562305,0.00016712,2]
[351100653,1738336263910,-2278.95,0.00016712,2]
[351100654,1738336263920,-2940.1,0.00016712,2]
[351100655,1738336263930,-856.83,0.00016712,2]
[351100656,1738336263939,-1551.27,0.00016712,2]
[351100657,1738336263949,-1610.25,0.00016712,2]
[351100658,1738336263959,-512.95,0.00016712,2]
[351100659,1738336263970,-330.562305,0.00016712,2]
[351100660,1738336263980,-500.0,0.00016712,2]
[351100661,1738336263991,-500.0,0.00016712,2]
[351100662,1738336264001,-3823.81,0.00016712,2]
[351100663,1738336264011,-3569.42,0.00016712,2]
[351100664,1738336264021,-1850.14,0.00016712,2]
[351100665,1738336264031,-500.0,0.00016712,2]
[351100666,1738336264042,-500.0,0.00016712,2]
[351100667,1738336264052,-3851.86,0.00016712,2]
[351100668,1738336264062,-6808.92,0.00016712,2]
[351100669,1738336264072,-1873.8,0.00016712,2]
[351100670,1738336264082,-2860.44,0.00016712,2]
[351100671,1738336264092,-2147.48,0.00016712,2]
[351100672,1738336264104,-976.14,0.00016712,2]
[351100673,1738336264113,-500.0,0.00016712,2]
[351100674,1738336264123,-2017.68,0.00016712,2]
[351100675,1738336264132,-1828.77,0.00016712,2]
[351100676,1738336264142,-500.0,0.00016712,2]
[351100677,1738336264153,-621.16,0.00016712,2]
[351100678,1738336264162,-500.0,0.00016712,2]
[351100679,1738336264172,-1135.92,0.00016712,2]
[351100680,1738336264182,-500.0,0.00016712,2]
[351100681,1738336264193,-1709.9,0.00016712,2]
[351100682,1738336264204,-1342.8,0.00016712,2]
[351100683,1738336264214,-500.0,0.00016712,2]
[351100684,1738336264224,-2166.78,0.00016712,2]
[351100685,1738336264234,-1098.56,0.00016712,2]
[351100686,1738336264244,-1110.21,0.00016712,2]
[351100687,1738336264254,-500.0,0.00016712,2]
[351100688,1738336264264,-500.0,0.00016712,2]
[351100689,1738336264273,-773.72,0.00016712,2]
[351100690,1738336264283,-1303.09,0.00016712,2]
[351100691,1738336264293,-1277.79,0.00016712,2]
[351100692,1738336264303,-797.14,0.00016712,2]
[351100693,1738336264314,-990.49,0.00016712,2]
[351100694,1738336264323,-500.0,0.00016712,2]
[351100695,1738336264333,-1293.59,0.00016712,2]
[351100696,1738336264343,-150.0,0.00016762,2]
[351100697,1738336264355,-158.189,0.00016762,2]
[351100698,1738336264365,-156.653,0.00016762,2]
[351100699,1738336264374,-1357.891,0.00016762,2]
[351100700,1738336264384,-2042.554,0.00016762,2]
[351100701,1738336264395,-701.493,0.00016762,2]
[351100702,1738336264405,-151.217,0.00016762,2]
[351100703,1738336264416,-568.29,0.00016762,2]
[351100704,1738336264426,-189.75,0.00016813,2]
[351100705,1738336264436,-388.8,0.00016813,2]
[351100706,1738336264446,-1772.5272533,0.00016838,2]
[351100707,1738336264457,-158.6772709,0.00016838,2]
[351100708,1738336264467,-6635.7636691,0.00016838,2]
[351100709,1738336264477,-3399.1551392,0.00016838,2]
[351100710,1738336264487,-500.0,0.00016848,2]
[351100711,1738336264497,-164.795532,0.00016849,2]
[351100712,1738336264507,-500.0,0.00016849,2]
[351100713,1738336264516,-616.5,0.00016849,2]
[351100714,1738336264527,-500.0,0.00016849,2]
[351100715,1738336264538,-500.0,0.00016849,2]
[351100716,1738336264551,-241.56930154,0.00016849,2]
[351100717,1738336264561,-601.87,0.00016849,2]
[351100718,1738336264572,-500.0,0.00016849,2]
[351100719,1738336264582,-500.0,0.00016849,2]
[351100720,1738336264592,-500.0,0.00016849,2]
[351100721,1738336264602,-501.12652695,0.00016849,2]
[351100722,1738336264614,-500.0,0.00016849,2]
[351100723,1738336264625,-500.0,0.00016849,2]
[351100724,1738336264635,-500.0,0.00016849,2]
[351100725,1738336264644,-510.37,0.00016849,2]
[351100726,1738336264653,-500.0,0.00016849,2]
[351100727,1738336264663,-1082.61,0.00016849,2]
[351100728,1738336264672,-536.14328419,0.00016849,2]
[351100729,1738336264681,-865.14,0.00016849,2]
[351100730,1738336264691,-500.0,0.00016849,2]
[351100731,1738336264700,-500.0,0.00016849,2]
[351100732,1738336264710,-500.0,0.00016849,2]
[351100733,1738336264720,-877.03,0.00016849,2]
[351100734,1738336264729,-244.14577139,0.00016849,2]
[351100735,1738336264739,-500.0,0.00016849,2]
[351100736,1738336264748,-500.0,0.00016849,2]
[351100737,1738336264758,-500.0,0.00016849,2]
[351100738,1738336264767,-500.0,0.00016849,2]
[351100739,1738336264776,-500.0,0.00016849,2]
[351100740,1738336264786,-644.71441815,0.00016849,2]
[351100741,1738336264796,-500.0,0.00016849,2]
[351100742,1738336264808,-500.0,0.00016849,2]
[351100743,1738336264822,-500.0,0.00016849,2]
[351100744,1738336264832,-304.97426608,0.00016849,2]
[351100745,1738336264842,-500.0,0.00016849,2]
[351100746,1738336264851,-500.0,0.00016849,2]
[351100747,1738336264863,-500.0,0.00016849,2]
[351100748,1738336264872,-1000.0,0.00016849,2]
[351100749,1738336264882,-1000.0,0.00016849,2]
[351100750,1738336264891,-1000.0,0.00016849,2]
[351100751,1738336264900,-500.0,0.00016849,2]
[351100752,1738336264909,-1000.0,0.00016849,2]
[351100753,1738336264919,-1000.0,0.00016849,2]
[351100754,1738336264929,-1000.0,0.00016849,2]
[351100755,1738336264939,-1000.0,0.00016849,2]
[351100756,1738336264948,-1000.0,0.00016849,2]
[351100757,1738336264957,-1000.0,0.00016849,2]
[351100758,1738336264967,-1000.0,0.00016849,2]
[351100759,1738336264976,-1000.0,0.00016849,2]
[351100760,1738336264985,-1000.0,0.00016849,2]
[351100761,1738336264995,-1000.0,0.00016849,2]
[351100762,1738336265004,-1000.0,0.00016849,2]
[351100763,1738336265014,-1000.0,0.00016849,2]
[351100764,1738336265023,-1000.0,0.00016849,2]
[351100765,1738336265034,-1000.0,0.00016849,2]
[351100766,1738336265043,-1000.0,0.00016849,2]
[351100767,1738336265053,-1000.0,0.00016849,2]
[351100768,1738336265062,-1000.0,0.00016849,2]
[351100769,1738336265073,-1000.0,0.00016849,2]
[351100770,1738336265083,-1000.0,0.00016849,2]
[351100771,1738336265092,-1000.0,0.00016849,2]
[351100772,1738336265102,-1000.0,0.00016849,2]
[351100773,1738336265113,-1000.0,0.00016849,2]
[351100774,1738336265123,-1000.0,0.00016849,2]
[351100775,1738336265132,-500.0,0.00016849,2]
[351100776,1738336265141,-1000.0,0.00016849,2]
[351100777,1738336265150,-1000.0,0.00016849,2]
[351100778,1738336265159,-1000.0,0.00016849,2]
[351100779,1738336265168,-385.55945199,0.00016849,2]
[351100780,1738336265178,-589.61,0.00016849,2]
[351100781,1738336265188,-500.0,0.00016849,2]
[351100782,1738336265198,-500.0,0.00016849,2]
[351100783,1738336265208,-500.0,0.00016849,2]
[351100784,1738336265218,-500.0,0.00016849,2]
[351100785,1738336265227,-500.0,0.00016849,2]
[351100786,1738336265238,-500.0,0.00016849,2]
[351100787,1738336265248,-625.93,0.00016849,2]
[351100788,1738336265257,-665.25,0.00016849,2]
[351100789,1738336265266,-500.0,0.00016849,2]
[351100790,1738336265276,-500.0,0.00016849,2]
[351100791,1738336265287,-500.0,0.00016849,2]
[351100792,1738336265296,-500.0,0.00016849,2]
[351100793,1738336265306,-500.0,0.00016849,2]
[351100794,1738336265316,-897.638258,0.00016849,2]
[351100795,1738336265325,-500.0,0.00016849,2]
[351100796,1738336265334,-500.0,0.00016849,2]
[351100797,1738336265343,-500.0,0.00016849,2]
[351100798,1738336265353,-567.7,0.00016849,2]
[351100799,1738336265363,-500.0,0.00016849,2]
[351100800,1738336265373,-500.0,0.00016849,2]
[351100801,1738336265383,-500.0,0.00016849,2]
[351100802,1738336265392,-500.0,0.00016849,2]
[351100803,1738336265402,-653.14,0.00016849,2]
[351100804,1738336265411,-500.0,0.00016849,2]
[351100805,1738336265421,-500.0,0.00016849,2]
[351100806,1738336265430,-1022.72,0.00016849,2]
[351100807,1738336265439,-502.09120081,0.00016849,2]
[351100808,1738336265449,-955.07,0.00016849,2]
[351100809,1738336265458,-500.0,0.00016849,2]
[351100810,1738336265467,-814.725661,0.00016849,2]
[351100811,1738336265477,-500.0,0.00016849,2]
[351100812,1738336265486,-1202.92,0.00016849,2]
[351100813,1738336265496,-500.0,0.00016849,2]
[351100814,1738336265505,-927.92,0.00016849,2]
[351100815,1738336265515,-500.0,0.00016849,2]
[351100816,1738336265524,-500.0,0.00016849,2]
[351100817,1738336265535,-500.0,0.00016849,2]
[351100818,1738336265546,-1090.26,0.00016849,2]
[351100819,1738336265556,-1460.61,0.00016849,2]
[351100820,1738336265565,-1325.35,0.00016849,2]
[351100821,1738336265574,-500.0,0.00016849,2]
[351100822,1738336265585,-500.0,0.00016849,2]
[351100823,1738336265595,-655.06,0.00016849,2]
[351100824,1738336265605,-500.0,0.00016849,2]
[351100825,1738336265616,-500.0,0.00016849,2]
[351100826,1738336265684,-584.79,0.00016849,2]
[351100827,1738336265693,-500.0,0.00016849,2]
[351100828,1738336265703,-500.0,0.00016849,2]
[351100829,1738336265712,-507.24159874,0.00016849,2]
[351100830,1738336265721,-2096.84,0.00016849,2]
[351100831,1738336265731,-333.27229264,0.00016849,2]
[351100832,1738336265740,-1188.04,0.00016849,2]
[351100833,1738336265749,-500.0,0.00016849,2]
[351100834,1738336265758,-1286.11,0.00016849,2]
[351100835,1738336265768,-956.55,0.00016849,2]
[351100836,1738336265777,-500.0,0.00016849,2]
[351100837,1738336265786,-500.0,0.00016849,2]
[351100838,1738336265795,-500.0,0.00016849,2]